[Event "Hungarian Youth-ch U18 2022"]
[Site "Eger"]
[Date "2022.07.26"]
[Round "4.2"]
[White "Daroczi, Donat"]
[Black "Virag, Balint"]
[Result "1-0"]
[ECO "B18"]
[WhiteElo "2163"]
[BlackElo "2164"]
[Annotator "TA"]
[PlyCount "97"]
[EventDate "2022.07.21"]
[EventType "tourn"]
[EventCountry "HUN"]
[SourceTitle "playchess.com"]
[Source "ChessBase"]
[SourceQuality "1"]
[TimeControl "40/5400+30:1800+30"]

{[%evp 18,97,26,11,110,0,0,0,6,0,21,25,16,16,25,24,57,27,62,62,64,68,108,107,130,97,148,85,184,191,205,202,206,187,189,189,240,238,259,245,260,231,231,239,332,271,303,297,296,314,303,279,447,436,398,225,471,465,455,455,455,455,446,396,337,0,437,430,590,557,756,1095,1158,1072,1732,654,606,558,29980,29980,29981,29981]} 1. e4 {[%emt 0:00:33]} c6 {[%emt 0:02:44]} 2. Nc3 {[%emt 0:01:35]} d5 {[%emt 0:00:14]} 3. d4 {[%emt 0:02:05]} dxe4 {[%emt 0:00:46]} 4. Nxe4 {[%emt 0:00:09]} Bf5 {[%emt 0:00:30]} 5. Ng3 {[%emt 0:00:06]} Bg6 {[%emt 0:00:37]} 6. h4 {[%emt 0:00:17]} h6 {[%emt 0:00:47]} 7. Nf3 {[%emt 0:00:16]} e6 {[%emt 0:04:05]} 8. Ne5 {[%emt 0:09:04]} Bh7 {[%emt 0:00:40]} 9. Bd3 {[%emt 0:03:20]} Bxd3 {[%emt 0:00:09]} 10. Qxd3 {[%emt 0:00:09]} Be7 {[%emt 0:02:28] B19: Classical Caro-Kann: 4...Bf5 main line.} (10... Nf6 $11) 11. h5 {[%emt 0:05:45] White is much more active.} (11. Nh5 $16 Bf6 12. Bf4) 11... Nf6 $11 {[%emt 0:01:11]} 12. Be3 {[%emt 0:03:58]} Nbd7 {[%emt 0:00:53] The position is equal.} 13. O-O-O {[%emt 0:03:10] [#]} Qc7 $146 {[%emt 0:02:32]} ({Predecessor:} 13... Nxe5 14. dxe5 Qxd3 15. Rxd3 Ng4 16. f4 Nxe3 17. Rxe3 O-O-O 18. Ne4 f5 19. exf6 gxf6 {½-½ (36) Jelagin,K (1878)-Vevera,R (2059) Czech Republic 2019}) 14. f4 {[%emt 0:06:50]} Rd8 {[%emt 0:02:41]} 15. Ne4 {[%emt 0:06:30]} Nxe4 {[%emt 0:24:11]} 16. Qxe4 {[%emt 0:01:11]} Nf6 {[%emt 0:00:13]} 17. Qf3 {[%emt 0:01:33]} Qa5 {[%emt 0:01:58]} 18. Kb1 {[%emt 0:02:20]} Qd5 {[%emt 0:00:17]} 19. Qe2 {[%emt 0:03:12]} b5 {[%emt 0:10:06] Black is now going downhill.} 20. g4 {[%emt 0:04:55]} Ne4 {[%emt 0:04:11] ...Ng3 is the strong threat.} 21. Rhg1 {[%emt 0:00:29] Prevents Ng3.} Rb8 {[%emt 0:04:30]} (21... Nd6 $142) 22. g5 {[%emt 0:08:09]} (22. f5 $142) 22... b4 {[%emt 0:05:48]} (22... Nd6 $16) 23. gxh6 $18 {[%emt 0:05:45]} gxh6 {[%emt 0:03:05]} 24. Qa6 {[%emt 0:02:11][%csl LRa7,LRc6]} Qb5 {[%emt 0:03:39]} 25. Qxc6+ {[%emt 0:01:30]} (25. Qxa7 Nc3+ 26. Kc1 Rb7 27. Qa8+ Rb8 $11) 25... Qxc6 {[%emt 0:00:45]} 26. Nxc6 {[%emt 0:00:02]} Rb7 {[%emt 0:00:48]} (26... Rb5 {is a better defense.} 27. d5 (27. Nxa7 Rxh5 28. Nc6 Rd5 $14) 27... Rxd5 28. Rxd5 (28. Bxa7 Rxd1+ 29. Rxd1 Rg8 $16) 28... exd5) 27. d5 {[%emt 0:01:34]} Rd7 {[%emt 0:02:43]} 28. dxe6 {[%emt 0:07:39]} fxe6 {[%emt 0:00:46]} 29. Rxd7 {[%emt 0:03:09]} (29. Nxa7 $6 Rxd1+ 30. Rxd1 Rg8 $18) 29... Kxd7 {[%emt 0:00:03]} 30. Ne5+ {[%emt 0:00:01]} ({Resist} 30. Nxa7 Nf6 31. Rd1+ Nd5) 30... Ke8 {[%emt 0:00:58]} 31. Bxa7 {[%emt 0:02:09] And now Re1 would win.} Rf8 {[%emt 0:00:25]} 32. Ng6 {[%emt 0:05:14]} Rf5 {[%emt 0:00:17] [#]} 33. Re1 $1 {[%emt 0:03:02]} Rxh5 {[%emt 0:04:32]} 34. c3 {[%emt 0:00:13]} Nd2+ {[%emt 0:00:17]} (34... Bc5 {might work better.} 35. Rxe4 Bxa7 36. Rxe6+ Kf7) 35. Kc2 {[%emt 0:03:18]} bxc3 {[%emt 0:00:06]} 36. Kxc3 {[%emt 0:01:55]} (36. Rxe6 $142 Kf7 37. Rxe7+ Kxg6 38. Kxc3) 36... Rh2 $2 {[%emt 0:00:07]} (36... Bd6 {was worth a try.} 37. Re2 (37. Kxd2 Bb4+ 38. Ke2 Bxe1 $16) (37. Rxe6+ Kf7 $16) 37... Nf1 38. Rxe6+ Kd7) 37. Rxe6 {[%emt 0:00:25]} Kf7 {[%emt 0:00:07]} 38. Rxe7+ {[%emt 0:00:39]} Kxg6 {[%emt 0:00:02][%mdl 4096] Endgame KRB-KRN} 39. b4 {[%emt 0:02:01][%cal Bb2b4,Bb4b5,Bb5b6][%mdl 32]} Nb1+ {[%emt 0:01:00]} 40. Kb3 {[%emt 0:00:00]} Nd2+ {[%emt 0:00:00]} 41. Kc3 {[%emt 0:03:00]} Nb1+ {[%emt 0:00:13][%mdl 64] [#] Discovered Attack} 42. Kc4 {[%emt 0:07:44]} Rxa2 {[%emt 0:00:14]} 43. b5 {[%emt 0:00:04] aiming for b6.} Ra4+ {[%emt 0:01:43]} 44. Kd3 {[%emt 0:02:39] Threatens to win with b6.} Ra3+ {[%emt 0:01:32]} 45. Kc2 {[%emt 0:04:58] Strongly threatening b6.} Nc3 {[%emt 0:00:15]} 46. b6 {[%emt 0:00:07]} Nd5 {[%emt 0:01:10]} 47. Re6+ {[%emt 0:00:37]} Kf5 {[%emt 0:00:43]} 48. Re5+ {[%emt 0:00:38]} Kxf4 {[%emt 0:00:06]} 49. Rxd5 {[%emt 0:00:05] Weighted Error Value: White=0.23 (precise) /Black=0.50} 1-0

[Event "Hungarian Youth-ch U18 2022"]
[Site "Eger"]
[Date "2022.07.26"]
[Round "4.3"]
[White "Baski, Barnabas"]
[Black "Reviczki, Roland"]
[Result "1-0"]
[ECO "A05"]
[WhiteElo "2142"]
[BlackElo "2160"]
[Annotator "TA"]
[PlyCount "99"]
[EventDate "2022.07.21"]
[EventType "tourn"]
[EventCountry "HUN"]
[SourceTitle "playchess.com"]
[Source "ChessBase"]
[SourceQuality "1"]
[TimeControl "40/5400+30:1800+30"]

{[%evp 13,99,23,58,10,8,4,4,0,43,39,39,36,51,48,56,39,111,111,112,100,107,51,57,50,117,117,120,111,112,94,131,122,161,149,132,95,95,94,93,94,88,93,91,96,100,106,93,85,75,71,71,11,105,80,98,83,93,80,101,87,159,164,165,165,210,206,337,206,722,622,360,337,5089,2411,29969,29970,29977,29978,29978,29979,29979,29980,29980,29981,29978,29978,29976,29966]} 1. Nf3 {[%emt 0:00:33]} Nf6 {[%emt 0:00:38]} 2. g3 {[%emt 0:00:11]} g6 {[%emt 0:00:06]} 3. b3 {[%emt 0:00:13]} Bg7 {[%emt 0:00:04]} 4. Bb2 {[%emt 0:00:09]} O-O {[%emt 0:00:10]} 5. Bg2 {[%emt 0:00:10]} d6 {[%emt 0:00:09]} 6. d4 {[%emt 0:00:20]} c5 {[%emt 0:00:21]} 7. c4 {[%emt 0:04:56]} Qa5+ {[%emt 0:01:12] 7...Ne4 is the modern continuation.} 8. Qd2 {[%emt 0:03:33] E60: King's Indian: Unusual lines and Fianchetto Variation without Nc3.} (8. Nc3 $14 {was preferrable.}) 8... Qxd2+ $11 {[%emt 0:00:25]} 9. Nbxd2 {[%emt 0:00:10] [#]} Na6 $146 {[%emt 0:04:27]} ({Predecessor:} 9... Nc6 10. d5 Nb4 11. O-O b5 12. a3 Na6 13. e4 bxc4 14. bxc4 Rb8 15. Bc3 Nd7 16. Bxg7 Kxg7 {1-0 (67) Jobava,B (2600)-Bakalchuk,J (2444) Chess.com INT 2022}) 10. d5 {[%emt 0:13:57] The position is equal.} e6 {[%emt 0:15:14]} 11. dxe6 {[%emt 0:03:28]} Bxe6 {[%emt 0:00:36]} 12. Ng5 {[%emt 0:11:29]} d5 {[%emt 0:01:15]} 13. Nxe6 {[%emt 0:10:00]} fxe6 {[%emt 0:00:51]} 14. cxd5 {[%emt 0:01:21]} exd5 {[%emt 0:40:42]} (14... Nxd5 $14 15. Bxg7 Kxg7) 15. Bxf6 $16 {[%emt 0:03:34]} Bxf6 {[%emt 0:02:02]} 16. Bxd5+ {[%emt 0:00:25]} Kh8 {[%emt 0:00:06] Hoping for ...Nb4.} 17. Rd1 {[%emt 0:07:29]} (17. Rc1 $1 $16 Rab8 18. Bg2) 17... Nb4 $14 {[%emt 0:02:42][%csl LRa2,LRd5]} 18. Bxb7 {[%emt 0:06:09]} Rae8 {[%emt 0:08:07]} (18... Rad8 $1 $14) 19. Bf3 $16 {[%emt 0:04:52]} Nxa2 {[%emt 0:01:16][%cal Bb4a2,Ba2c3,Bc3b5][%mdl 32]} 20. O-O {[%emt 0:01:00]} Nc3 {[%emt 0:00:31][%csl LRd1,LRe2]} 21. Rde1 {[%emt 0:00:32]} Rb8 {[%emt 0:01:29]} 22. Ra1 $1 {[%emt 0:04:50]} Nb5 {[%emt 0:14:50]} 23. Ra6 {[%emt 0:01:13]} Rb6 {[%emt 0:01:13]} 24. Rxb6 {[%emt 0:00:54]} axb6 {[%emt 0:00:04]} 25. Nc4 {[%emt 0:05:23]} Nd4 {[%emt 0:00:14]} 26. Nxb6 {[%emt 0:01:07]} Nxf3+ {[%emt 0:01:13]} 27. exf3 {[%emt 0:00:03][%mdl 4096] Endgame KRB-KRN} Bd4 {[%emt 0:00:32]} 28. f4 {[%emt 0:07:01]} Rb8 {[%emt 0:00:30]} 29. Nc4 {[%emt 0:01:51]} Rxb3 {[%emt 0:00:08]} 30. Rc1 {[%emt 0:00:25]} Kg7 {[%emt 0:00:57]} 31. Rc2 {[%emt 0:01:40]} Kf7 {[%emt 0:01:04] [#]} 32. Nd2 {[%emt 0:01:25]} (32. Re2 $1 $16) 32... Rb2 {[%emt 0:02:36]} (32... Rb5 $1 $11 {keeps the balance.}) 33. Rxb2 {White stays focused until the end.} Bxb2 {[%emt 0:00:08] KB-KN} 34. Kf1 {[%emt 0:03:38]} Ke6 {[%emt 0:00:08] [#]} 35. Nc4 $1 {[%emt 0:00:34]} Bd4 {[%emt 0:00:20]} 36. Ke2 {[%emt 0:00:59]} Kd5 {[%emt 0:00:35]} ({Better is} 36... Kd7) 37. Ne3+ {[%emt 0:00:23]} Kc6 {[%emt 0:01:09]} 38. Kd3 {[%emt 0:01:10] Inhibits Bc3.} Kb5 {[%emt 0:00:11]} 39. g4 {[%emt 0:01:19] aiming for g5.} Bg7 {[%emt 0:01:08]} (39... Kc6 $142 40. Ke4 Kb6) 40. f5 {[%emt 0:00:00]} Be5 $2 {[%emt 0:00:00]} (40... gxf5 41. Nxf5 (41. gxf5 Kc6 $16) 41... c4+ 42. Ke4 c3) 41. fxg6 $18 {[%emt 0:04:24]} hxg6 {[%emt 0:02:40]} 42. h4 {[%emt 0:01:53] Black must now prevent Ke4.} Kb4 $2 {[%emt 0:03:36]} (42... Kc6 43. Ke4 Bd4) 43. f4 {[%emt 0:01:46]} ({Not} 43. h5 gxh5 44. gxh5 Bg7 $16) 43... Bh8 {[%emt 0:06:25]} 44. Kc2 {[%emt 0:07:11] White mates.} Ba1 {[%emt 0:05:05]} 45. Nd5+ {[%emt 0:04:39]} Kc4 {[%emt 0:00:09]} 46. Ne7 {[%emt 0:00:10]} Kd4 {[%emt 0:06:54]} 47. Nxg6 {[%emt 0:00:44]} Ke4 {[%emt 0:00:08]} 48. h5 {[%emt 0:01:06][%cal Bh4h5,Bh5h6][%mdl 32]} Bg7 {[%emt 0:02:32]} 49. g5 {[%emt 0:01:51]} Kf5 {[%emt 0:00:06]} 50. h6 {[%emt 0:00:30] Weighted Error Value: White=0.10 (very precise) /Black=0.39} 1-0

[Event "Hungarian Youth-ch U18 2022"]
[Site "Eger"]
[Date "2022.07.26"]
[Round "4.4"]
[White "Koltai, Dora"]
[Black "Toth, Nikoletta"]
[Result "1-0"]
[ECO "C54"]
[WhiteElo "1764"]
[BlackElo "1914"]
[Annotator "TA"]
[PlyCount "95"]
[EventDate "2022.07.21"]
[EventType "tourn"]
[EventCountry "HUN"]
[SourceTitle "playchess.com"]
[Source "ChessBase"]
[SourceQuality "1"]
[TimeControl "40/5400+30:1800+30"]

{[%evp 17,95,0,0,0,18,17,29,33,53,50,59,62,65,18,24,4,4,4,4,4,3,0,9,9,12,7,0,0,0,-10,0,-12,0,-9,0,0,0,0,0,9,35,52,258,163,160,157,156,153,211,211,210,206,255,260,247,258,688,763,733,724,787,750,1572,1656,2639,1385,1228,1152,29985,29986,29988,29989,29989,29990,29990,29991,29992,29988,29992,29993]} 1. e4 {[%emt 0:00:36]} e5 {[%emt 0:00:34][%cal Be7e5,Be5d4][%mdl 32]} 2. Nf3 {[%emt 0:00:05]} Nc6 {[%emt 0:00:03]} 3. d4 {[%emt 0:00:33]} exd4 {[%emt 0:00:29]} 4. Bc4 {[%emt 0:00:06]} Bc5 {[%emt 0:02:03]} 5. c3 {[%emt 0:01:40]} Nf6 {[%emt 0:00:07]} 6. e5 {[%emt 0:00:15]} d5 {[%emt 0:00:05]} 7. Bb5 {[%emt 0:00:07]} Ne4 {[%emt 0:00:05]} 8. cxd4 {[%emt 0:00:26]} Bb6 {[%emt 0:00:04]} 9. Nc3 {[%emt 0:00:45]} O-O {[%emt 0:03:37]} 10. Be3 {[%emt 0:00:20] C54: Giuoco Piano: 4 c3 Nf6, main lines with 5 d4 and 5 d3.} Nxc3 {[%emt 0:00:17]} 11. bxc3 {[%emt 0:00:09] [#]} h6 $146 {[%emt 0:01:21]} ({Predecessor:} 11... f6 12. O-O Bg4 13. Be2 fxe5 14. Nxe5 Nxe5 15. Bxg4 Nxg4 16. Qxg4 Qf6 17. g3 Rae8 18. Bf4 Qe6 19. Qxe6+ {½-½ (19) Motylev,A (2633)-Alekseev,E (2591) Sochi 2022}) 12. O-O {[%emt 0:11:02] White has an edge.} Na5 {[%emt 0:00:10]} 13. Bd3 {[%emt 0:07:49]} Qe7 {[%emt 0:01:17]} 14. Bc2 {[%emt 0:05:31] [#] Black must now prevent Qd3.} f5 {[%emt 0:10:50]} 15. exf6 {[%emt 0:05:37]} (15. Bc1 $14) 15... Qxf6 $11 {[%emt 0:00:23]} 16. Bb3 {[%emt 0:04:35]} c6 {[%emt 0:04:29]} 17. Ne5 {[%emt 0:02:59] Prevents Bg4.} Bc7 {[%emt 0:01:58]} 18. f4 {[%emt 0:02:19]} Bf5 {[%emt 0:05:31]} 19. Qh5 {[%emt 0:03:37]} Bxe5 {[%emt 0:08:10]} 20. dxe5 {[%emt 0:07:10]} Qe6 {[%emt 0:00:58]} 21. Rac1 {[%emt 0:08:41]} b6 {[%emt 0:02:09]} 22. Bc2 {[%emt 0:07:43]} Nc4 {[%emt 0:08:07]} 23. Bxf5 {[%emt 0:04:23]} Rxf5 {[%emt 0:00:12]} 24. Qe2 {[%emt 0:03:02]} Re8 {[%emt 0:03:59][%cal Oc4e5] Threatens to win with ...Nxe5!} 25. Rce1 {[%emt 0:04:09]} Re7 {[%emt 0:05:18]} 26. g4 {[%emt 0:03:11]} Rf8 {[%emt 0:02:03]} 27. Qg2 {[%emt 0:01:33]} Qd7 {[%emt 0:02:42][%cal Og7g5]} 28. Bc1 {[%emt 0:04:23]} Kf7 {[%emt 0:11:18]} 29. Re2 {[%emt 0:04:24]} Ke8 $2 {[%emt 0:01:15] Loses the game.} (29... Kg8 $14) 30. Qg3 {[%emt 0:01:19]} Kd8 {[%emt 0:02:56]} 31. f5 {[%emt 0:01:34]} Kc8 {[%emt 0:00:48]} 32. e6 {[%emt 0:01:56]} Qd6 {[%emt 0:00:05]} (32... Qe8 $16 33. Bf4 Kb7) 33. Qxd6 $18 {[%emt 0:02:59]} Nxd6 {[%emt 0:00:05]} 34. Bf4 {[%emt 0:01:51]} Ne4 {[%emt 0:00:18] [#]} 35. Rxe4 {[%emt 0:00:26][%mdl 512]} dxe4 {[%emt 0:00:11][%mdl 4096] Endgame KRR-KRB} 36. Bd6 {[%emt 0:00:04]} Rfe8 {[%emt 0:00:31]} (36... Kd8 37. Rd1 Rf6 38. Bxe7+ Kxe7 39. Rd7+ Kf8 40. Rd8+ Ke7) 37. Bxe7 {[%emt 0:00:07]} Rxe7 {[%emt 0:00:05] KR-KR} 38. Kf2 {[%emt 0:00:48]} Kd8 {[%emt 0:01:36]} 39. Ke3 {[%emt 0:00:44]} Rc7 {[%emt 0:00:48]} 40. Kxe4 {[%emt 0:00:00]} Ke7 {[%emt 0:00:00]} 41. Ke5 {[%emt 0:04:01] Threatening mate with h4.} Rc8 {[%emt 0:00:23]} 42. Rd1 {[%emt 0:01:12] Rd7+ is the strong threat.} Rc7 {[%emt 0:00:54] Against Rd7+} 43. h4 {[%emt 0:00:52][%cal Bh2h4,Bh4g5][%mdl 32] White mates.} c5 {[%emt 0:01:18]} 44. g5 {[%emt 0:00:18]} hxg5 {[%emt 0:00:27]} 45. hxg5 {[%emt 0:00:05]} c4 {[%emt 0:00:45]} 46. f6+ {[%emt 0:00:16]} Ke8 {[%emt 0:01:02]} 47. f7+ {[%emt 0:00:28]} Ke7 {[%emt 0:00:04]} 48. Rd7+ {[%emt 0:00:13] Weighted Error Value: White=0.07 (flawless) /Black=0.48} 1-0

[Event "Hungarian Youth-ch U18 2022"]
[Site "Eger"]
[Date "2022.07.26"]
[Round "4.5"]
[White "Kiss, Eniko"]
[Black "Somogyi, Barbara"]
[Result "1-0"]
[ECO "A22"]
[WhiteElo "1646"]
[BlackElo "1682"]
[Annotator "NA RC COMBH"]
[PlyCount "53"]
[EventDate "2022.07.21"]
[EventType "tourn"]
[EventCountry "HUN"]
[SourceTitle "playchess.com"]
[Source "ChessBase"]
[SourceQuality "1"]
[TimeControl "40/5400+30:1800+30"]

1. c4 {[%emt 0:00:33]} e5 {[%emt 0:00:39]} 2. g3 {[%emt 0:00:12]} Nf6 {[%emt 0:00:22]} 3. Nc3 {[%emt 0:00:17]} d5 4. cxd5 {[%emt 0:01:56]} Nxd5 {[%emt 0:00:48]} 5. Bg2 {[%emt 0:01:32]} Nb6 {[%emt 0:00:32]} 6. d3 {[%emt 0:10:32]} Be7 {[%emt 0:01:51]} 7. Be3 {[%emt 0:10:20]} Nc6 {[%emt 0:02:54]} 8. Rc1 {[%emt 0:16:02]} Be6 {[%emt 0:04:54]} 9. Bxc6+ {[%emt 0:19:22]} bxc6 {[%emt 0:00:28]} 10. Nf3 {[%emt 0:00:05]} f6 {[%emt 0:07:27]} 11. d4 {[%emt 0:08:55]} exd4 {[%emt 0:26:08]} 12. Nxd4 {[%emt 0:02:00]} Bd7 {[%emt 0:06:23]} 13. Ne4 {[%emt 0:04:24]} Bb4+ {[%emt 0:05:56]} 14. Bd2 {[%emt 0:01:35]} Qe7 {[%emt 0:06:30]} 15. Qc2 {[%emt 0:09:42]} O-O-O {[%emt 0:08:03]} 16. O-O {[%emt 0:05:36]} Bxd2 {[%emt 0:05:41]} 17. Nxd2 {[%emt 0:00:26]} c5 {[%emt 0:05:13]} 18. N4b3 {[%emt 0:02:14]} Qxe2 {[%emt 0:06:20]} 19. Qxc5 {[%emt 0:00:18]} c6 {[%emt 0:04:08]} 20. Rfe1 {[%emt 0:01:04]} Qa6 {[%emt 0:02:33]} 21. Re7 {[%emt 0:01:53]} g6 {[%emt 0:01:59]} 22. Qd6 {[%emt 0:00:50]} Qb5 {[%emt 0:01:35]} 23. Nd4 {[%emt 0:00:35]} Qd5 {[%emt 0:00:33]} 24. Rxc6+ {[%emt 0:00:52]} Qxc6 {[%emt 0:00:55]} 25. Nxc6 {[%emt 0:00:07]} Kb7 {[%emt 0:00:27]} 26. Nxd8+ {[%emt 0:00:32]} Rxd8 {[%emt 0:00:05]} 27. Nb3 {[%emt 0:00:22]} 1-0

[Event "Hungarian Youth-ch U18 2022"]
[Site "Eger"]
[Date "2022.07.26"]
[Round "4.6"]
[White "Ivan, Reka Gyongyver"]
[Black "Buri, Kata"]
[Result "1-0"]
[ECO "A45"]
[WhiteElo "1877"]
[BlackElo "1730"]
[Annotator "NA RC COMBH"]
[PlyCount "87"]
[EventDate "2022.07.21"]
[EventType "tourn"]
[EventCountry "HUN"]
[SourceTitle "playchess.com"]
[Source "ChessBase"]
[SourceQuality "1"]
[TimeControl "40/5400+30:1800+30"]

1. d4 {[%emt 0:00:34]} Nf6 {[%emt 0:01:50]} 2. Bg5 {[%emt 0:00:26]} g6 {[%emt 0:01:38]} 3. Bxf6 {[%emt 0:00:37]} exf6 {[%emt 0:00:10]} 4. c4 {[%emt 0:00:28]} Bg7 {[%emt 0:00:56]} 5. Nc3 {[%emt 0:00:24]} d6 {[%emt 0:06:05]} 6. g3 {[%emt 0:01:35]} O-O {[%emt 0:03:17]} 7. Bg2 {[%emt 0:00:30]} c5 {[%emt 0:01:47]} 8. e3 {[%emt 0:01:17]} Qb6 {[%emt 0:03:18]} 9. Qd2 {[%emt 0:12:50]} (9. Nd5 $142 Qd8 10. Ne2) 9... Nc6 {[%emt 0:03:18]} 10. Nge2 {[%emt 0:01:45]} f5 {[%emt 0:06:25]} 11. Nd5 {[%emt 0:02:52]} Qd8 {[%emt 0:02:07]} 12. O-O {[%emt 0:01:09]} a6 {[%emt 0:04:37]} 13. Rab1 {[%emt 0:06:30]} Rb8 {[%emt 0:00:50]} 14. b4 {[%emt 0:02:51]} cxd4 {[%emt 0:03:02]} 15. Nxd4 {[%emt 0:01:19]} Ne5 {[%emt 0:00:52]} 16. Rfc1 {[%emt 0:02:26]} b5 {[%emt 0:02:59]} 17. cxb5 {[%emt 0:03:31]} axb5 {[%emt 0:00:10]} 18. Qe2 {[%emt 0:02:16]} Bd7 {[%emt 0:01:13]} 19. Nc7 {[%emt 0:03:35]} Rc8 {[%emt 0:12:21]} 20. Ncxb5 {[%emt 0:04:05]} Qb6 {[%emt 0:01:07]} 21. a3 {[%emt 0:05:05]} Nc6 {[%emt 0:03:06]} 22. Rd1 {[%emt 0:12:23]} Nxd4 {[%emt 0:00:42]} 23. Nxd4 {[%emt 0:00:07]} Rc3 {[%emt 0:00:59]} 24. Qa2 {[%emt 0:05:07]} Rfc8 {[%emt 0:01:29]} 25. Bd5 {[%emt 0:02:08]} Bxd4 {[%emt 0:03:21]} 26. Rxd4 {[%emt 0:04:05]} Rc2 {[%emt 0:00:40]} 27. Qa1 {[%emt 0:02:14]} Qa6 {[%emt 0:02:43]} 28. Bf3 {[%emt 0:03:05]} Be6 {[%emt 0:04:05]} (28... Bb5 $16 {was called for.}) 29. b5 {[%emt 0:04:02]} Qb6 {[%emt 0:03:25]} 30. Bd5 $16 {[%emt 0:01:54]} (30. Rdd1 $18 {is more deadly.}) 30... Bxd5 {[%emt 0:02:24]} 31. Rxd5 {[%emt 0:00:09]} Qb7 {[%emt 0:00:06]} 32. Rbd1 {[%emt 0:04:56]} R8c3 {[%emt 0:01:51]} 33. Qb1 {[%emt 0:03:13]} Rc1 {[%emt 0:04:40]} 34. Rxc1 {[%emt 0:01:08]} Rxc1+ {[%emt 0:00:07]} 35. Qxc1 {[%emt 0:00:04]} Qxd5 {[%emt 0:00:06]} 36. b6 {[%emt 0:00:11]} Qb5 {[%emt 0:00:33]} 37. Qc8+ {[%emt 0:00:36]} Kg7 {[%emt 0:00:06]} 38. b7 {[%emt 0:02:35]} Qb1+ {[%emt 0:00:26]} 39. Kg2 {[%emt 0:00:05]} Qe4+ {[%emt 0:00:04]} 40. f3 {[%emt 0:00:00]} Qxe3 {[%emt 0:00:00]} 41. Qc2 {[%emt 0:07:11]} Qb6 {[%emt 0:03:05]} 42. Qc3+ {[%emt 0:00:08]} f6 {[%emt 0:00:13]} 43. Qb4 {[%emt 0:00:22]} Qa6 {[%emt 0:00:39]} 44. Qb2 {[%emt 0:00:21]} 1-0

[Event "Hungarian Youth-ch U18 2022"]
[Site "Eger"]
[Date "2022.07.26"]
[Round "4.7"]
[White "Sulyok, Eszter"]
[Black "Juhasz, Judit"]
[Result "1-0"]
[ECO "E83"]
[WhiteElo "2091"]
[BlackElo "2037"]
[Annotator "TA"]
[PlyCount "77"]
[EventDate "2022.07.21"]
[EventType "tourn"]
[EventCountry "HUN"]
[SourceTitle "playchess.com"]
[Source "ChessBase"]
[SourceQuality "1"]
[TimeControl "40/5400+30:1800+30"]

{[%evp 19,77,76,88,83,87,50,71,52,67,67,83,97,121,112,136,170,166,177,137,83,85,71,77,68,93,78,82,43,35,41,39,38,32,22,62,0,198,165,274,256,502,494,448,427,947,969,1254,1201,29970,29970,29970,29972,29972,1899,29973,29974,29973,29974,29975,29976]} 1. d4 {[%emt 0:00:32]} Nf6 {[%emt 0:00:55]} 2. c4 {[%emt 0:00:12]} g6 {[%emt 0:00:05]} 3. Nc3 {[%emt 0:00:04]} Bg7 {[%emt 0:00:05]} 4. e4 {[%emt 0:00:04]} d6 {[%emt 0:00:04]} 5. f3 {[%emt 0:00:03]} O-O {[%emt 0:01:17]} 6. Be3 {[%emt 0:00:29]} Nc6 {[%emt 0:00:18]} 7. Qd2 {[%emt 0:01:51]} e5 {[%emt 0:00:24]} 8. Nge2 {[%emt 0:02:25]} Nd7 {[%emt 0:05:45]} 9. d5 {[%emt 0:03:40]} Ne7 {[%emt 0:01:23]} 10. g4 {[%emt 0:01:40]} f5 {[%emt 0:01:38]} 11. gxf5 {[%emt 0:15:46] White is more active. E85: King's Indian: Sämisch: 6...e5.} gxf5 {[%emt 0:00:34]} 12. Bg5 {[%emt 0:08:52]} Nf6 {[%emt 0:02:25]} 13. O-O-O {[%emt 0:08:37] White is better.} a6 {[%emt 0:06:25]} 14. h4 {[%emt 0:25:07][%cal Bh2h4,Bh4h5,Bh5h6][%mdl 32]} b5 {[%emt 0:02:44]} 15. a3 {[%emt 0:04:09]} Rb8 {[%emt 0:04:25]} 16. h5 {[%emt 0:01:44]} b4 {[%emt 0:02:46]} 17. axb4 {[%emt 0:00:40]} Rxb4 {[%emt 0:00:05]} 18. h6 {[%emt 0:00:51]} Bh8 {[%emt 0:00:05]} 19. Ng3 {[%emt 0:00:12]} (19. Rg1 $142 {Black must now prevent Bxf6+.} Kf7 20. exf5) 19... f4 $16 {[%emt 0:05:47]} 20. Nh5 {[%emt 0:02:36]} Nxh5 {[%emt 0:02:08]} 21. Rxh5 {[%emt 0:00:47][%cal Oc3b5] [#]} Qe8 $146 {[%emt 0:01:08] [#] Inhibits Nb5.} ({Predecessor:} 21... Bf6 22. Bd3 Kh8 23. Rg1 Ng6 24. Bxf6+ Rxf6 25. Kc2 c5 26. dxc6 Rxb2+ 27. Kxb2 Qb6+ {1-0 (42) Sande,O (2522)-Werner,E (2484) ICCF email 1999}) 22. Bxe7 $1 {[%emt 0:02:45]} Qxh5 {[%emt 0:02:30]} (22... Qxe7 23. Kc2) 23. Qg2+ {[%emt 0:02:06]} Qg6 $1 {[%emt 0:05:42]} 24. Qxg6+ {[%emt 0:01:31]} hxg6 {[%emt 0:00:05]} 25. Bxf8 {[%emt 0:00:04]} (25. h7+ {looks sharper.} Kf7 26. Bxf8 Kxf8 27. Bd3) 25... Kxf8 {[%emt 0:00:05]} 26. c5 {[%emt 0:01:56]} Bf6 {[%emt 0:04:46]} 27. c6 {[%emt 0:03:12]} ({White should try} 27. Kc2 $1 $14) 27... Bg5 $2 {[%emt 0:00:44] [#]} (27... Kg8 $11 {and Black stays safe.}) 28. Kc2 $1 $18 {[%emt 0:00:24]} ({And not} 28. Na2 Rb8 $11) 28... Bxh6 {[%emt 0:00:59]} (28... Kg8 $142) 29. Ra1 {[%emt 0:00:47][%cal Oc3b5] And now Nb5! would win.} Rb6 {[%emt 0:02:10] [#] Against Nb5} (29... Rb8 30. b4 (30. Bxa6 Ra8 $11) 30... Bg5) 30. Nb5 $1 {[%emt 0:00:50][%mdl 512]} Bg5 {[%emt 0:16:41]} (30... axb5 $2 31. Ra8 Kg7 32. Rxc8) (30... Rxb5 31. Bxb5 Bg5 32. Bxa6 Bxa6 33. Rxa6) (30... Bb7 31. cxb7) 31. Nxc7 {[%emt 0:00:49][%cal Rf1a6]} Bh4 {[%emt 0:08:28]} (31... Ke7 $142 32. Bxa6 Kd8 33. Bxc8 Kxc7) 32. Bxa6 {[%emt 0:00:30]} Bxa6 {[%emt 0:00:30]} 33. Rxa6 {[%emt 0:00:30]} Rxa6 {[%emt 0:00:30]} 34. Nxa6 {[%emt 0:00:30] KB-KN} Ke7 {[%emt 0:00:30]} 35. Nb8 {[%emt 0:00:30]} Kd8 {[%emt 0:00:30]} 36. Nd7 {[%emt 0:00:30]} (36. b4 $142 Kc7 37. Nd7 Be1 38. b5 Bf2 39. b6+ Bxb6 40. Nxb6 Kxb6 41. Kd3) 36... Kc7 {[%emt 0:00:30]} 37. b4 {[%emt 0:00:30][%cal Bb2b4,Bb4b5,Bb5b6][%mdl 32] White mates.} Bf2 {[%emt 0:00:30]} 38. b5 {[%emt 0:00:30]} g5 {[%emt 0:00:30]} 39. b6+ {[%emt 0:00:30] Weighted Error Value: White=0.09 (flawless) /Black=0.83} 1-0